bitfinex/quotes_ETHUSD_20240701
["timestamp","ask_amount","ask_price","bid_price","bid_amount"]
[1719875199636,2.2959,3448.8,3448.4,6.63389]
[1719875199936,1.99191646,3448.7,3448.4,6.63389]
[1719875200145,0.50191725,3448.6,3448.4,6.63389]
[1719875200345,2.2959,3448.8,3448.4,6.63389]
[1719875200503,1.99191382,3448.7,3448.4,6.63389]
[1719875200704,2.2959,3448.8,3448.4,6.63389]
[1719875200905,0.50191413,3448.7,3448.4,6.63389]
[1719875201217,2.3821897,3449.0,3448.4,7.70510311]
[1719875201420,1.99185423,3448.9,3448.4,7.70510311]
[1719875201617,1.99185423,3448.8,3448.4,7.70510311]
[1719875201819,1.99185423,3448.7,3448.4,7.70510311]
[1719875202147,2.3821897,3449.0,3448.4,6.63389]
[1719875202454,1.99184676,3448.9,3448.4,6.63389]
[1719875202629,1.99184676,3448.8,3448.4,6.63389]
[1719875202813,0.5019116,3448.7,3448.4,6.63389]
[1719875203025,2.3821897,3449.0,3448.4,6.63389]
[1719875203235,1.99183762,3448.9,3448.5,2.89981]
[1719875203443,1.99183762,3448.8,3448.5,2.89981]
[1719875203656,0.50191159,3448.7,3448.5,2.89981]
[1719875203826,2.3821897,3449.0,3448.5,2.89981]
[1719875204134,1.99185797,3448.9,3448.5,2.89981]
[1719875204338,1.99185797,3448.8,3448.5,2.89981]
[1719875204652,0.50191142,3448.7,3448.5,2.89981]
[1719875204816,0.50191142,3448.9,3448.5,2.89981]
[1719875205021,1.99190566,3448.8,3448.5,2.89981]
[1719875205222,0.50191142,3448.7,3448.5,2.89981]
[1719875205423,2.3821897,3449.0,3448.5,2.89981]
[1719875205752,1.99186817,3448.9,3448.5,2.89981]
[1719875205905,1.99186817,3448.8,3448.5,2.89981]
[1719875206106,2.3821897,3449.0,3448.5,2.89981]
[1719875206352,1.99185659,3448.9,3448.5,2.89981]
[1719875206556,2.3821897,3449.0,3448.5,2.89981]
[1719875206557,1.99185659,3448.8,3448.5,2.89981]
[1719875206725,0.50190428,3448.8,3448.5,2.89981]
[1719875207059,2.3821897,3449.0,3448.5,2.89981]
[1719875207357,1.99185557,3448.9,3448.5,2.89981]
[1719875207519,1.99185557,3448.8,3448.5,2.89981]
[1719875207707,2.3821897,3449.0,3448.5,2.89981]
[1719875207907,1.99186374,3448.9,3448.5,2.89981]
[1719875208108,1.99186374,3448.8,3448.5,2.89981]
[1719875208309,0.10841532,3448.8,3448.5,2.89981]
[1719875208554,2.3821897,3449.0,3448.5,2.89981]
[1719875208722,0.10841532,3448.7,3448.5,2.89981]
[1719875209042,2.3821897,3449.0,3448.5,2.89981]
[1719875209260,1.99188267,3448.9,3448.5,2.89981]
[1719875209457,2.10029799,3448.8,3448.5,2.89981]
[1719875209609,0.10841532,3448.8,3448.5,2.89981]
[1719875210133,0.10841532,3448.7,3448.6,2.89972]
[1719875210338,0.1188897,3449.0,3448.6,2.89972]
[1719875210547,0.10841532,3448.7,3448.6,2.89972]
[1719875210747,0.1188897,3449.0,3448.6,2.89972]
[1719875210959,0.10473644,3448.7,3448.6,2.89972]
[1719875211157,0.1188897,3449.0,3448.6,2.89972]
[1719875211316,0.10473644,3448.7,3448.6,4.10127]
[1719875211833,0.1188897,3449.0,3448.8,2.89955]
[1719875212150,2.0966344,3448.9,3448.8,2.89955]
[1719875213366,2.09665583,3448.9,3448.8,2.89955]
[1719875216421,0.10473644,3448.9,3448.8,2.89955]
[1719875216623,2.09664052,3448.9,3448.8,2.89955]
[1719875219780,2.09659068,3448.9,3448.8,2.89955]
[1719875221072,2.09659068,3448.9,3448.7,2.89964]
[1719875221276,0.50189166,3448.8,3448.7,2.89964]
[1719875221497,0.6066585,3448.8,3448.5,2.8998]
[1719875221666,0.50189166,3448.7,3448.5,2.8998]
[1719875222101,0.10476684,3448.6,3448.5,2.8998]
[1719875222316,0.50189718,3448.6,3448.5,2.8998]
[1719875222574,0.10476684,3448.6,3448.5,3.7725054]
[1719875222880,0.50189706,3448.9,3448.5,3.7725054]
[1719875223059,0.10476684,3448.6,3448.5,3.6338]
[1719875223259,0.50189706,3448.6,3448.5,3.6338]
[1719875223463,0.6066639,3448.6,3448.5,3.6338]
[1719875225415,0.60666301,3448.6,3448.5,3.6338]
[1719875228603,1.10856096,3448.6,3448.5,3.6338]
[1719875231717,0.6066639,3448.6,3448.5,3.6338]
[1719875231896,1.1085616,3448.6,3448.5,3.6338]
[1719875232480,0.60666454,3448.6,3448.5,3.6338]
[1719875235037,0.10476684,3448.6,3448.5,3.6338]
[1719875235321,0.50189673,3448.6,3448.5,3.6338]
[1719875235482,0.6066332,3448.6,3448.5,3.6338]
[1719875236818,2.09721098,3448.6,3448.5,3.6338]
[1719875238226,2.09699278,3448.6,3448.5,3.6338]
[1719875238694,2.09699278,3448.6,3448.5,7.228441]
[1719875241442,0.10473644,3448.6,3448.5,7.228441]
[1719875241738,0.1188897,3449.0,3448.6,2.8997]
[1719875242044,3.47700358,3448.9,3448.6,2.8997]
[1719875242212,1.99209421,3448.8,3448.6,2.8997]
[1719875242414,1.99209421,3448.7,3448.6,2.8997]
[1719875242947,1.99209421,3448.7,3448.6,6.992329]
[1719875244724,0.1188897,3449.0,3448.9,2.89947]
[1719875244943,0.62076393,3449.0,3448.9,2.89947]
[1719875245120,2.11102923,3449.0,3448.9,2.89947]
[1719875245305,3.59598347,3449.0,3448.9,2.89947]
[1719875246008,2.11102923,3449.0,3448.9,2.89947]
[1719875248069,0.1188897,3449.0,3448.9,2.89947]
[1719875248369,2.11130872,3449.0,3448.9,2.89947]
[1719875248524,0.1188897,3449.0,3448.9,2.89947]
[1719875248925,0.62074405,3449.0,3448.9,2.89947]
[1719875249153,2.11130445,3449.0,3448.9,2.89947]
[1719875251379,2.11124726,3449.0,3448.9,2.89947]
[1719875253160,2.21602512,3449.0,3448.9,2.89947]
[1719875254373,0.22366756,3449.0,3448.9,2.89947]
[1719875254532,2.21598405,3449.0,3448.9,2.89947]
[1719875255275,2.21598405,3449.0,3448.8,2.89955]
[1719875255450,1.99231649,3448.9,3448.8,2.89955]
[1719875256059,2.09709435,3448.9,3448.8,2.89955]
[1719875257601,0.10477786,3448.9,3448.8,2.89955]
[1719875257766,0.60665865,3448.9,3448.8,2.89955]
[1719875258890,0.60665023,3448.9,3448.8,2.89955]
[1719875259387,2.09712615,3448.9,3448.8,2.89955]
[1719875260989,0.60665023,3448.9,3448.8,2.89955]
[1719875261178,2.09711954,3448.9,3448.8,2.89955]
[1719875261490,2.09712316,3448.9,3448.8,2.89955]
[1719875263955,0.60665395,3448.9,3448.8,2.89955]
[1719875264294,0.60663758,3448.9,3448.8,2.89955]
[1719875264954,2.09712519,3448.9,3448.8,2.89955]
[1719875267386,2.09712789,3448.9,3448.8,2.89955]
[1719875270556,0.10477786,3448.9,3448.8,2.89955]
[1719875270883,1.59526794,3448.9,3448.8,2.89955]
[1719875271094,2.09713863,3448.9,3448.8,2.89955]
[1719875273820,0.10477786,3448.9,3448.8,2.89955]
[1719875274908,0.60663547,3448.9,3448.8,2.89955]
[1719875275094,2.09715224,3448.9,3448.8,2.89955]
[1719875276816,0.10477786,3448.9,3448.8,2.89955]
[1719875277108,2.09715426,3448.9,3448.8,2.89955]
[1719875280119,1.59529545,3448.9,3448.8,2.89955]
[1719875280270,2.09716175,3448.9,3448.8,2.89955]
[1719875282689,0.10477786,3448.9,3448.8,2.89955]
[1719875282890,0.6066365,3448.9,3448.8,2.89955]
[1719875283587,2.09715396,3448.9,3448.8,2.89955]
[1719875286009,1.59609077,3448.9,3448.8,2.89955]
[1719875286211,2.0979494,3448.9,3448.8,2.89955]
[1719875286616,2.09896371,3448.9,3448.8,2.89955]
[1719875288051,2.09896371,3448.9,3448.6,2.8997]
[1719875288197,3.48446007,3448.8,3448.4,5.89986]
[1719875288396,1.99418585,3448.7,3448.4,5.89986]
[1719875288650,2.09897756,3448.6,3448.4,5.89986]
[1719875288926,1.99418585,3448.5,3448.4,7.1350981]
[1719875289125,1.49655171,3448.5,3448.4,7.1350981]
[1719875289446,2.10324789,3448.5,3448.4,7.1350981]
[1719875292425,2.10322461,3448.5,3448.4,7.1350981]
[1719875295535,0.10479171,3448.5,3448.4,7.1350981]
[1719875295700,0.60669242,3448.5,3448.4,7.1350981]
[1719875295896,0.1188897,3449.0,3448.5,2.89978]
[1719875296101,3.47740226,3448.9,3448.5,2.89978]
[1719875296442,1.99843793,3448.8,3448.5,6.53352]
[1719875296648,0.1188897,3449.0,3448.5,6.53352]
[1719875296649,1.99843793,3448.7,3448.5,6.53352]
[1719875296825,1.99843793,3448.6,3448.5,3.63374]
[1719875297213,1.99843793,3448.6,3448.5,4.816345]
[1719875298312,2.10313566,3448.6,3448.5,4.816345]
[1719875298773,0.10469773,3448.6,3448.5,4.816345]
[1719875299046,2.11727743,3449.0,3448.7,2.89962]
[1719875299211,0.60658458,3448.9,3448.7,2.89962]
[1719875299412,1.99838306,3448.8,3448.7,2.89962]
[1719875299947,2.10310842,3448.8,3448.7,2.89962]
[1719875301950,2.10310688,3448.8,3448.7,2.89962]
[1719875302428,2.1031077,3448.8,3448.7,2.89962]
[1719875303655,2.1031077,3448.8,3448.6,2.89972]
[1719875303818,1.99838234,3448.7,3448.6,2.89972]
[1719875304016,2.10311046,3448.7,3448.6,2.89972]
[1719875305051,0.10472812,3448.7,3448.6,2.89972]
[1719875305529,1.9984036,3448.7,3448.6,2.89972]
[1719875305737,2.10314832,3448.7,3448.6,2.89972]
[1719875308359,0.10474472,3448.7,3448.6,2.89972]
[1719875308559,0.60663051,3448.7,3448.6,2.89972]
[1719875308870,2.10312338,3448.7,3448.6,2.89972]
[1719875309519,2.10312338,3448.7,3448.6,3.63372]
[1719875309718,2.10312338,3448.7,3448.6,4.58708]
[1719875310662,2.10312338,3448.7,3448.6,3.85308]
[1719875310985,2.10312338,3448.7,3448.6,2.89972]
[1719875312040,1.60123759,3448.7,3448.6,2.89972]
[1719875312269,2.10313577,3448.7,3448.6,2.89972]
[1719875314784,0.10474472,3448.7,3448.6,2.89972]
[1719875315076,1.99838797,3448.7,3448.6,2.89972]
[1719875315282,2.10313837,3448.7,3448.6,2.89972]
[1719875316104,2.32534118,3448.7,3447.4,7.061673]
[1719875316261,2.4883,3448.1,3447.4,1.161003]
[1719875316438,6.39703999,3448.0,3447.4,1.161003]
[1719875316637,0.734,3447.8,3447.4,1.161003]
[1719875316842,0.734,3447.8,3447.0,2.901]
[1719875316843,2.10310796,3447.7,3447.1,2.90093]
[1719875317093,1.99838811,3447.6,3447.2,2.9009]
[1719875317295,2.20012263,3447.5,3447.2,2.9009]
[1719875317599,2.20012263,3447.5,3447.3,2.90081]
[1719875317600,0.70362269,3447.4,3447.3,2.90081]
[1719875317880,0.20173452,3447.4,3447.3,2.90081]
[1719875318084,0.80842446,3447.4,3447.3,2.90081]
[1719875318391,0.30634105,3447.4,3447.3,2.90081]
[1719875318554,0.10460653,3447.4,3447.3,3.554389]
[1719875319039,2.90026,3448.0,3447.4,2.90073]
[1719875319249,0.20107433,3447.9,3447.4,2.90073]
[1719875319452,0.70313778,3447.9,3447.4,2.90073]
[1719875319653,2.20018986,3447.8,3447.4,2.90073]
[1719875319857,1.69812662,3447.7,3447.4,2.90073]
[1719875320082,0.20107433,3447.6,3447.4,2.90073]
[1719875320442,2.90026,3448.0,3447.4,2.90073]
[1719875320680,2.20027652,3447.9,3447.4,2.90073]
[1719875320892,2.20027652,3447.8,3447.4,2.90073]
[1719875321041,0.20116395,3447.7,3447.4,2.90073]
[1719875321247,0.70322672,3447.7,3447.4,2.90073]
[1719875321483,0.20116395,3447.6,3447.4,2.90073]
[1719875321684,2.90026,3448.0,3447.4,2.90073]
[1719875321887,2.20026549,3447.9,3447.4,2.90073]
[1719875322085,2.20026549,3447.8,3447.4,2.90073]
[1719875322403,0.70322813,3447.7,3447.0,2.90106]
[1719875322579,0.20115149,3447.6,3447.0,2.90106]
[1719875322746,0.70322813,3447.6,3447.0,2.90106]
[1719875322947,2.90043,3447.8,3447.0,2.90106]
[1719875322948,0.20115149,3447.5,3447.0,2.90106]
[1719875323187,2.90043,3447.8,3447.0,2.90106]
[1719875323484,1.35668668,3447.7,3447.0,2.90106]
[1719875323694,0.70321768,3447.6,3447.0,2.90106]
[1719875323864,2.90043,3447.8,3447.0,2.90106]
[1719875324182,0.70320632,3447.7,3447.0,2.90106]
[1719875324489,0.20111206,3447.6,3447.0,2.90106]
[1719875324643,3.40043,3447.8,3447.0,2.90106]
[1719875324840,0.20104865,3447.7,3447.1,2.90098]
[1719875325064,0.70314294,3447.7,3447.1,2.90098]
[1719875325287,2.90043,3447.8,3447.1,2.90098]
[1719875325288,0.20104865,3447.6,3447.1,3.63498]
[1719875325459,2.90043,3447.8,3447.1,3.63498]
[1719875325670,0.20102652,3447.7,3447.1,3.63498]
[1719875328380,0.10413931,3447.6,3447.1,3.63498]
[1719875328590,0.10413931,3447.6,3447.2,2.9009]
[1719875328947,2.90043,3447.8,3447.2,2.9009]
[1719875329149,0.10407571,3447.5,3447.2,2.9009]
[1719875329348,2.90043,3447.8,3447.2,2.9009]
[1719875329549,0.10407571,3447.4,3447.2,2.9009]
[1719875329842,0.10407571,3447.3,3447.2,3.7990145]
[1719875330044,3.40043,3447.8,3447.2,3.7990145]
[1719875330269,0.30510467,3447.7,3447.2,2.9009]
[1719875330478,0.10407571,3447.7,3447.2,2.9009]
[1719875337320,0.10397892,3447.6,3447.2,2.9009]
[1719875337810,7.48,3447.9,3447.0,2.90107]
[1719875337811,2.90049,3447.7,3447.0,2.90107]
[1719875337973,0.10397892,3447.5,3447.1,2.9891]
[1719875338173,2.90049,3447.7,3447.1,2.9891]
[1719875338370,0.10397892,3447.4,3447.1,2.9891]
[1719875338601,2.90049,3447.7,3447.1,2.9891]
[1719875338814,2.427,3447.8,3447.1,5.89008]
[1719875339018,1.00209635,3447.7,3447.1,5.89008]
[1719875339188,0.60397892,3447.7,3447.2,2.90084]
[1719875339516,0.10397892,3447.7,3447.2,2.90084]
[1719875339871,10.38031,3447.9,3447.2,2.90084]
[1719875340073,0.8070618,3447.8,3447.2,2.90084]
[1719875340272,0.50209642,3447.7,3447.2,2.90084]
[1719875340498,0.5,3447.8,3447.2,2.90084]
[1719875340706,0.60608029,3447.7,3447.2,2.90084]
[1719875340910,0.10398445,3447.7,3447.2,2.90084]
[1719875341407,0.5,3447.8,3447.2,2.90084]
[1719875341632,0.60608015,3447.7,3447.2,2.90084]
[1719875341832,0.10398445,3447.7,3447.2,2.90084]
[1719875342035,10.38031,3447.9,3447.2,2.90084]
[1719875342036,0.5020959,3447.6,3447.2,2.90084]
[1719875342211,0.10397892,3447.5,3447.2,2.90084]
[1719875342410,10.38031,3447.9,3447.2,2.90084]
[1719875342611,0.80705908,3447.8,3447.2,2.90084]
[1719875342808,0.50209565,3447.7,3447.2,2.90084]
[1719875343237,0.10397892,3447.6,3447.2,2.90084]
[1719875343437,0.50209592,3447.6,3447.2,2.90084]
[1719875343642,0.6060776,3447.5,3447.2,2.90084]
[1719875343804,0.10398168,3447.5,3447.2,2.90084]
[1719875344003,10.38031,3447.9,3447.2,2.90084]
[1719875344004,2.9004,3447.8,3447.2,3.63484]
[1719875344240,0.60607719,3447.7,3447.2,2.90084]
[1719875344555,0.50209551,3447.6,3447.2,2.90084]
[1719875344843,0.50209551,3447.5,3447.2,2.90084]
[1719875345037,0.60607719,3447.4,3447.2,2.90084]
[1719875345239,0.50209551,3447.3,3447.2,2.90084]
[1719875345737,0.10398168,3447.3,3447.2,2.90084]
[1719875346037,0.50209551,3447.7,3447.2,2.90084]
[1719875346240,0.60607719,3447.6,3447.2,2.90084]
[1719875346606,0.50209523,3447.5,3447.2,2.90084]
[1719875346806,0.50209523,3447.4,3447.2,2.90084]
[1719875347006,0.60606861,3447.3,3447.2,2.90084]
[1719875349841,0.10397338,3447.3,3447.2,2.90084]
[1719875350133,0.50209539,3447.8,3447.2,2.90084]
[1719875350352,0.10396232,3447.3,3447.2,2.90084]
[1719875350508,0.50209536,3447.3,3447.2,2.90084]
[1719875350705,0.60605768,3447.3,3447.2,2.90084]
[1719875353022,0.60605771,3447.3,3447.2,2.90084]
[1719875355038,0.60605771,3447.3,3447.1,2.2551]
[1719875355334,0.60605771,3447.3,3447.1,2.90098]
[1719875355335,0.50209539,3447.2,3447.1,2.90098]
[1719875355937,0.50209539,3447.7,3447.1,2.90098]
[1719875356103,0.20131795,3447.6,3447.1,2.90098]
[1719875356302,0.20131795,3447.5,3447.1,2.90098]
[1719875356505,0.50209713,3447.4,3447.1,2.90098]
[1719875356705,0.60604838,3447.4,3447.1,2.90098]
[1719875356911,0.50209713,3447.3,3447.1,2.90098]
[1719875357229,0.10395125,3447.2,3447.1,2.90098]
[1719875357439,0.50209713,3447.2,3447.1,2.90098]
[1719875357751,0.60604838,3447.2,3447.1,2.90098]
[1719875358312,0.50209713,3447.2,3447.1,2.90098]
[1719875358544,0.50209713,3447.7,3447.1,2.90098]
[1719875358843,2.3044935,3447.6,3447.1,2.90098]
[1719875359042,0.70338924,3447.5,3447.1,2.90098]
[1719875359240,0.70338924,3447.4,3447.1,2.90098]
[1719875359443,0.20129211,3447.3,3447.1,2.90098]
[1719875359648,0.30523506,3447.2,3447.1,2.90098]
[1719875359814,0.8073332,3447.2,3447.1,2.90098]
[1719875362140,2.3044907,3447.2,3447.1,2.90098]
[1719875362550,2.3044894,3447.2,3447.1,2.90098]
[1719875363153,2.3044886,3447.2,3447.1,2.90098]
[1719875364627,2.20054565,3447.2,3447.1,2.90098]
[1719875365756,2.20052134,3447.2,3447.1,2.90098]
[1719875365932,2.20052063,3447.2,3447.1,2.90098]
[1719875368855,0.70338143,3447.2,3447.1,2.90098]
[1719875369454,2.30445836,3447.2,3447.1,2.90098]
[1719875369756,2.20051541,3447.2,3447.1,2.90098]
[1719875372083,0.20129211,3447.2,3447.1,2.90098]
[1719875372581,0.20129211,3447.2,3447.1,5.38268]
[1719875372787,0.80732103,3447.2,3447.1,6.59026355]
[1719875372955,2.30445316,3447.2,3447.1,6.59026355]
[1719875373982,2.30445316,3447.2,3447.1,7.14026355]
[1719875374884,2.30445316,3447.2,3447.1,10.04124355]
[1719875375485,1.80235881,3447.2,3447.1,10.04124355]
[1719875375654,2.30444576,3447.2,3447.1,8.83366]
[1719875375990,2.30444624,3447.2,3447.1,8.83366]
[1719875378762,2.30444764,3447.2,3447.1,8.83366]
[1719875380097,0.3052323,3447.2,3447.1,8.83366]
[1719875380300,0.8073199,3447.2,3447.1,8.83366]
[1719875381303,2.30444847,3447.2,3447.1,8.83366]
[1719875381458,1.80236087,3447.2,3447.1,8.83366]
[1719875381794,1.80236087,3447.2,3447.1,6.35196]
[1719875382199,2.30444829,3447.2,3447.1,6.35196]
[1719875385104,0.3052323,3447.2,3447.1,6.35196]
[1719875385267,2.30444651,3447.2,3447.1,6.35196]
[1719875386988,2.1031544,3447.2,3447.1,6.35196]
[1719875387173,2.3045362,3447.2,3447.1,6.35196]
[1719875388610,2.30454105,3447.2,3447.1,6.35196]
[1719875390107,2.30465067,3447.2,3447.1,6.35196]
[1719875391903,2.30465321,3447.2,3447.1,6.35196]
[1719875392408,2.30465382,3447.2,3447.1,6.35196]
[1719875394907,0.30543161,3447.2,3447.1,6.35196]
[1719875395083,0.80752026,3447.2,3447.1,6.35196]
[1719875396174,2.30465217,3447.2,3447.1,6.35196]
[1719875398211,0.30543161,3447.2,3447.1,6.35196]
[1719875398410,1.80256401,3447.2,3447.1,6.35196]
[1719875398708,2.30465283,3447.2,3447.1,6.35196]
[1719875401025,2.30465095,3447.2,3447.1,6.35196]
[1719875401381,2.30465095,3447.2,3447.1,1.284]
[1719875401723,2.30465095,3447.2,3447.0,3.0]
[1719875402018,0.10394019,3447.2,3447.1,0.734]
[1719875402214,2.30511221,3447.2,3447.1,0.734]
[1719875403783,0.30586704,3447.2,3447.1,0.734]
[1719875404017,0.80796096,3447.2,3447.1,0.734]
[1719875404198,2.30510944,3447.2,3447.1,0.734]
[1719875404384,0.8079608,3447.2,3447.1,0.734]
[1719875404779,0.60603395,3447.2,3447.1,0.734]
[1719875404988,0.80784577,3447.2,3447.1,0.734]
[1719875405195,2.30499376,3447.2,3447.1,0.734]
[1719875406808,7.34559957,3447.2,3446.5,2.4486]
[1719875407009,1.69910244,3447.1,3446.4,2.90156]
[1719875407210,2.20131653,3447.0,3446.5,0.734]
[1719875407519,2.20131653,3446.9,3446.5,0.734]
[1719875407720,2.20131653,3446.8,3446.5,0.734]
[1719875408019,1.80309003,3446.7,3446.5,0.734]
[1719875408220,0.20181182,3446.6,3446.5,3.734]
[1719875408725,0.3056386,3446.6,3446.5,3.734]
[1719875409024,0.3056386,3446.6,3446.5,3.0]
[1719875409235,0.3056386,3446.6,3446.4,0.734]
[1719875409450,0.20181182,3446.5,3446.4,0.734]
[1719875410317,0.10381848,3446.5,3446.4,0.734]
[1719875410525,2.90112,3447.0,3446.4,0.734]
[1719875410729,2.3045844,3446.9,3446.6,0.734]
[1719875410924,0.20124013,3446.8,3446.6,0.734]
[1719875411247,0.10382125,3446.7,3446.6,0.734]
[1719875411422,0.30506138,3446.7,3446.6,0.734]
[1719875414537,0.10382125,3446.7,3446.6,3.63541]
[1719875414758,0.20126719,3446.7,3446.6,8.366056]
[1719875414902,7.48,3447.2,3446.6,8.366056]
[1719875414903,0.20127006,3447.1,3446.8,2.90119]
[1719875415103,2.20076989,3447.0,3446.8,3.63519]
[1719875415355,0.70342512,3446.9,3446.8,3.63519]
[1719875415543,0.20126862,3446.9,3446.8,3.63519]
[1719875416035,0.20126862,3447.2,3446.8,3.63519]
[1719875416237,1.99942491,3447.1,3446.8,3.63519]
[1719875416544,0.20126862,3447.0,3446.8,3.63519]
[1719875416745,0.20126862,3446.9,3446.8,3.63519]
[1719875416944,0.20126862,3447.2,3446.8,3.63519]
[1719875417148,2.20069198,3447.1,3446.8,3.63519]
[1719875417462,0.70340615,3447.0,3446.8,3.63519]
[1719875417628,2.3422,3447.3,3446.8,3.63519]
[1719875417629,0.20126862,3446.9,3446.8,3.63519]
[1719875417811,0.20126862,3447.2,3446.9,2.90113]
[1719875418021,2.20083123,3447.1,3446.9,2.90113]
[1719875418214,0.70354742,3447.0,3446.9,2.90113]
[1719875418521,0.30528141,3447.0,3446.9,2.90113]
[1719875418722,0.30528141,3447.0,3446.9,9.5877988]
[1719875419022,7.38,3447.6,3446.9,13.1377988]
[1719875419237,7.38,3447.6,3447.3,0.734]
[1719875419238,2.20046539,3447.5,3447.3,0.734]
[1719875419437,2.20046539,3447.4,3447.3,0.734]
[1719875419628,0.20123138,3447.4,3447.3,3.63482]
[1719875419829,0.80714403,3447.4,3447.3,3.63482]
[1719875420023,2.30428453,3447.4,3447.3,0.734]
[1719875420375,2.30428453,3447.4,3447.2,2.90082]
[1719875420518,2.30428453,3447.4,3447.1,0.734]
[1719875420519,2.20046327,3447.3,3447.0,2.90103]
[1719875420853,0.30509414,3447.2,3447.0,3.63503]
[1719875421056,0.20123138,3447.1,3447.0,3.63503]
[1719875421218,0.20123138,3447.1,3447.0,6.63503]
[1719875421661,0.10386276,3447.1,3447.0,6.63503]
[1719875422069,0.20123138,3447.1,3447.0,6.63503]
[1719875422267,0.30509414,3447.1,3447.0,6.63503]
[1719875424179,0.30509414,3447.1,3447.0,8.2607432]
[1719875430255,0.10386276,3447.1,3447.0,8.2607432]
[1719875430845,0.20134744,3447.4,3447.1,2.90095]
[1719875431174,1.99927076,3447.3,3447.1,2.90095]
[1719875431482,0.70343238,3447.2,3447.1,2.90095]
[1719875431976,0.20132997,3447.2,3447.1,2.90095]
[1719875432185,0.20132997,3447.4,3447.1,2.90095]
[1719875432556,1.99926829,3447.3,3447.1,2.90095]
[1719875432759,0.20132997,3447.2,3447.1,2.90095]
[1719875432940,0.70343062,3447.2,3447.0,3.0]
[1719875433146,0.33486666,3447.1,3447.0,3.0]
[1719875435054,0.33486666,3447.1,3447.0,5.90107]
[1719875435451,0.33486666,3447.1,3447.0,3.0]
[1719875435646,0.33486666,3447.1,3446.9,3.0]
[1719875435989,0.20132997,3447.0,3446.9,3.0]
[1719875436384,0.33486942,3447.0,3446.9,3.0]
[1719875436546,0.33486942,3447.0,3446.8,3.734]
[1719875436897,0.20132997,3446.9,3446.8,3.734]
[1719875437389,0.33482519,3446.9,3446.8,3.734]
[1719875438098,0.33482519,3446.9,3446.8,3.0]
[1719875438386,0.83699229,3446.9,3446.6,3.0]
[1719875438600,2.20093408,3446.8,3446.5,3.0]
[1719875438766,0.33480027,3446.7,3446.5,3.0]
[1719875439092,0.20132997,3446.6,3446.5,3.0]
[1719875439654,0.1334703,3446.6,3446.5,3.0]
[1719875440085,0.33480027,3446.6,3446.5,3.0]
[1719875440291,0.20132997,3446.6,3446.5,3.0]
[1719875440489,0.1334703,3446.6,3446.5,3.0]
[1719875440811,0.20132997,3446.9,3446.5,3.0]
[1719875441115,0.1334703,3446.6,3446.5,3.0]
[1719875441263,0.20132997,3446.6,3446.5,3.0]
[1719875441463,0.1334703,3446.6,3446.5,3.0]
[1719875442059,0.20132997,3446.6,3446.5,3.0]
[1719875442266,0.33480027,3446.6,3446.5,3.0]
[1719875443690,0.33480027,3446.6,3446.3,3.734]
[1719875444001,0.1334703,3446.6,3446.4,0.734]
[1719875444301,2.90114,3447.0,3446.4,0.734]
[1719875444502,0.1334703,3446.5,3446.4,0.734]
[1719875444866,0.20113097,3446.5,3446.4,0.734]
[1719875445065,0.33460127,3446.5,3446.4,0.734]
[1719875445266,0.1334703,3446.5,3446.4,0.734]
[1719875445706,0.20105822,3446.9,3446.4,0.734]
[1719875445994,0.20105822,3446.8,3446.4,0.734]
[1719875446198,0.33452852,3446.7,3446.4,0.734]
[1719875446374,0.20105822,3446.6,3446.4,0.734]
[1719875446576,0.20105822,3446.6,3446.3,5.90165]
[1719875446798,0.20105822,3446.6,3446.0,2.90188]
[1719875446799,0.33452852,3446.5,3446.0,2.90188]
[1719875446978,2.20093418,3446.4,3445.8,5.37665]
[1719875447179,0.83673123,3446.3,3445.9,2.90199]
[1719875447406,0.20105822,3446.2,3445.9,3.63599]
[1719875447608,0.13334307,3446.1,3445.9,3.63599]
[1719875447780,2.90138,3446.7,3445.9,3.63599]
[1719875447981,2.33405324,3446.6,3445.9,3.63599]
[1719875448177,2.20071017,3446.5,3445.9,3.63599]
[1719875448405,0.70305761,3446.4,3445.9,3.63599]
[1719875448611,0.33414673,3446.3,3446.0,3.0]
[1719875448835,0.20080366,3446.2,3446.0,3.0]
[1719875449388,0.13334307,3446.1,3446.0,3.0]
[1719875449603,2.90138,3446.7,3446.0,3.0]
[1719875449903,2.33407188,3446.6,3446.0,3.0]
[1719875450120,2.20072881,3446.5,3446.0,3.0]
[1719875450454,0.3340722,3446.4,3446.0,3.0]
[1719875450623,0.20083979,3446.3,3446.0,3.0]
[1719875451023,0.13323241,3446.2,3446.0,3.0]
[1719875451189,2.90138,3446.7,3446.0,3.0]
[1719875451523,2.33397753,3446.6,3446.0,3.0]
[1719875451708,0.20084736,3446.5,3446.0,3.0]
[1719875452115,0.20084736,3446.5,3445.9,3.63599]
[1719875452318,0.13323241,3446.4,3446.0,3.0]
[1719875452608,0.20084736,3446.3,3446.0,3.0]
[1719875452988,0.13323241,3446.2,3446.0,3.0]
[1719875453188,2.90142,3446.6,3446.0,3.0]
[1719875453387,0.33408283,3446.5,3446.0,3.0]
[1719875453693,0.20085042,3446.4,3446.0,3.0]
[1719875454338,0.13323241,3446.3,3446.0,3.0]
[1719875454649,2.90142,3446.6,3446.0,3.0]
[1719875454798,0.13323241,3446.2,3446.0,3.0]
[1719875455148,2.90142,3446.6,3446.0,4.201274]
[1719875455308,0.13323241,3446.1,3446.0,4.201274]
[1719875455641,2.90142,3446.6,3446.0,1.201274]
[1719875455797,0.20084865,3446.5,3446.0,3.0]
[1719875455998,0.13323241,3446.4,3446.0,3.0]
[1719875456310,0.13323241,3446.4,3446.0,5.90188]
[1719875456718,2.90133,3446.7,3446.0,5.90188]
[1719875456917,0.13323241,3446.3,3446.0,5.90188]
[1719875457145,2.90133,3446.7,3446.0,7.103127]
[1719875457442,0.70310025,3446.6,3446.0,5.90188]
[1719875457735,0.33408163,3446.5,3446.0,5.90188]
[1719875457962,0.20084922,3446.4,3446.0,5.90188]
[1719875458647,0.13323241,3446.3,3446.0,5.90188]
[1719875459049,2.90133,3446.7,3446.0,5.90188]
[1719875459283,0.13323241,3446.2,3446.0,5.90188]
[1719875459554,2.90133,3446.7,3446.0,7.103127]